[Event "European Women Blitz-ch 2024"]
[Site "Monaco"]
[Date "2025.01.10"]
[Round "11.15"]
[White "Papp, Petra"]
[Black "Agrest, Inna"]
[Result "1-0"]
[Annotator "TA"]
[ECO "D02"]
[WhiteElo "2235"]
[BlackElo "2159"]
[PlyCount "127"]
[EventDate "2025.01.06"]
[EventType "swiss"]
[EventCountry "MNC"]
[SourceTitle "playchess.com"]
[Source "ChessBase"]
[SourceQuality "1"]
[TimeControl "180+2"]

{[%evp 11,126,-7,0,0,0,0,0,0,1,-3,6,0,0,0,0,0,0,0,37,0,0,11,31,37,37,0,0,0,62,62,61,49,74,66,72,47,72,68,69,69,71,70,108,71,70,83,89,81,95,71,106,59,90,90,120,27,82,60,63,70,178,5,6,6,6,6,23,0,6,6,6,6,6,6,6,0,0,0,6,6,6,6,6,6,6,6,6,6,6,6,6,6,6,6,6,6,6,6,6,6,6,6,6,0,0,0,107,107,107,107,117,107,117,113,29980,29981,29999]} 1. d4 {[%emt 0:00:03]} d5 {[%emt 0:00:01]} 2. Nf3 {[%emt 0:00:02]} e6 {[%emt 0:00:01]} 3. Bf4 {[%emt 0:00:03]} Bd6 {[%emt 0:00:06]} 4. e3 {[%emt 0:00:03]} Nf6 {[%emt 0:00:09]} 5. Ne5 {[%emt 0:00:01]} O-O {[%emt 0:00:08]} 6. Nd2 {[%emt 0:00:02]} c5 {[%emt 0:00:03]} 7. c3 {[%emt 0:00:01]} b6 {[%emt 0:00:02]} 8. Bd3 {[%emt 0:00:06]} Qc7 {[%emt 0:00:05]} 9. Qe2 {[%emt 0:00:06]} a5 {[%emt 0:00:04]} 10. a4 {[%emt 0:00:04]} Nbd7 {[%emt 0:00:24]} 11. Ndf3 {[%emt 0:00:05]} (11. Nxd7 {simplifies} Nxd7 12. Bxd6 Qxd6 13. O-O) 11... Ne4 {[%emt 0:00:08]} 12. O-O {[%emt 0:00:09]} f6 {[%emt 0:00:04]} 13. Nxd7 {[%emt 0:00:02]} Bxd7 {[%emt 0:00:03]} 14. Bxd6 {[%emt 0:00:07]} Qxd6 {[%emt 0:00:02]} (14... Nxd6 $5 15. Rfc1 Rfe8 $11) 15. Bxe4 {[%emt 0:00:01]} dxe4 {[%emt 0:00:02]} 16. Nd2 {[%emt 0:00:02]} f5 {[%emt 0:00:21]} 17. Nc4 {[%emt 0:00:02]} Qc7 {[%emt 0:00:08]} 18. Rfd1 {[%emt 0:00:10]} cxd4 {[%emt 0:00:12]} 19. Rxd4 {[%emt 0:00:07]} Bxa4 {[%emt 0:00:23]} 20. Rxa4 $14 {[%emt 0:00:16]} b5 {[%emt 0:00:01][%csl LRa4,LRc4]} 21. Ra2 {[%emt 0:00:25]} (21. Rxa5 $5 bxc4 22. Rxa8 Rxa8 23. g3 $11 (23. Rxc4 $2 Ra1+ $19)) 21... e5 {[%emt 0:00:22] [#]} 22. Nxe5 $1 {[%emt 0:00:15]} Qxe5 {[%emt 0:00:03]} 23. Qd2 {[%emt 0:00:05]} h6 {[%emt 0:00:21]} 24. Ra1 {[%emt 0:00:04]} Qe6 {[%emt 0:00:10][%cal Ob5b4]} 25. Rd6 {[%emt 0:00:04]} Qc4 {[%emt 0:00:04]} 26. Rd7 {[%emt 0:00:04]} Rf7 {[%emt 0:00:06]} 27. Rd4 {[%emt 0:00:05]} Qc7 {[%emt 0:00:04]} 28. Rd5 {[%emt 0:00:04]} Rb8 {[%emt 0:00:04]} 29. g3 {[%emt 0:00:06]} Kh7 {[%emt 0:00:08]} 30. h4 {[%emt 0:00:01]} Rb7 {[%emt 0:00:08]} 31. h5 {[%emt 0:00:05]} (31. b3 $16) 31... Rf6 {[%emt 0:00:03]} 32. Rd8 {[%emt 0:00:02]} Qf7 {[%emt 0:00:01]} 33. Qd4 {[%emt 0:00:16]} (33. Rxa5 $16 Qxh5 34. Raa8) 33... Qxh5 {[%emt 0:00:03]} (33... a4 $11) 34. Qd5 $16 {[%emt 0:00:00]} Qf7 {[%emt 0:00:03]} 35. Rxa5 {[%emt 0:00:02] White is much more active.} Rc7 {[%emt 0:00:00]} (35... b4 $14) 36. Raa8 $2 {[%emt 0:00:01]} ({Better is} 36. Rxb5 $18 {Black must now prevent Kg2.} Ra7 37. Kg2) 36... Qxd5 $11 {[%emt 0:00:02]} 37. Rxd5 {[%emt 0:00:01][%mdl 4096] Endgame KRR-KRR} b4 {[%emt 0:00:03]} 38. cxb4 {[%emt 0:00:02]} Rc2 {[%emt 0:00:00]} 39. Raa5 {[%emt 0:00:21]} Rxb2 {[%emt 0:00:02]} 40. Rxf5 {[%emt 0:00:01]} Rxf5 {[%emt 0:00:01]} 41. Rxf5 {[%emt 0:00:01]} Rxb4 {[%emt 0:00:01] KR-KR} 42. Kg2 {[%emt 0:00:01]} Kg6 {[%emt 0:00:01]} 43. Rf4 {[%emt 0:00:01]} Kg5 {[%emt 0:00:03]} 44. g4 {[%emt 0:00:01]} Kg6 {[%emt 0:00:02]} 45. Kg3 {[%emt 0:00:01]} Kg5 {[%emt 0:00:02]} 46. Rf5+ {[%emt 0:00:01]} Kg6 {[%emt 0:00:00]} 47. Kf4 {[%emt 0:00:00]} Ra4 {[%emt 0:00:05]} 48. Re5 {[%emt 0:00:01]} Ra2 {[%emt 0:00:01]} 49. Kg3 {[%emt 0:00:02]} Ra4 $1 {[%emt 0:00:01]} 50. Re6+ {[%emt 0:00:01]} Kg5 {[%emt 0:00:02]} 51. Rb6 {[%emt 0:00:05]} Rc4 {[%emt 0:00:02]} 52. Rb7 {[%emt 0:00:04]} Kg6 {[%emt 0:00:01]} 53. Rb2 {[%emt 0:00:02]} Kg5 {[%emt 0:00:02]} 54. Rd2 {[%emt 0:00:00]} Rc6 {[%emt 0:00:06]} 55. Rd4 {[%emt 0:00:02]} Re6 $1 {[%emt 0:00:01]} 56. Rd5+ {[%emt 0:00:03][%cal Bd4d5,Bd5f5,Bf5b5,Bb5b6][%mdl 32]} Kg6 {[%emt 0:00:00]} 57. Kf4 {[%emt 0:00:01]} Rf6+ {[%emt 0:00:01]} 58. Rf5 {[%emt 0:00:02]} Ra6 {[%emt 0:00:04]} (58... Rxf5+ $11 {keeps the balance.} 59. gxf5+ Kh5) 59. Kxe4 $16 {[%emt 0:00:02]} Ra4+ {[%emt 0:00:01]} 60. Kf3 {[%emt 0:00:00]} Ra2 {[%emt 0:00:00]} 61. Rb5 {[%emt 0:00:01]} Rc2 {[%emt 0:00:01]} 62. Rb6+ {[%emt 0:00:01]} Kg5 $2 {[%emt 0:00:01][%mdl 8192] [#]} (62... Kf7 $16) 63. Kg3 $1 {[%emt 0:00:00][%csl Ge3,Gg3][%cal Rf2f4]} h5 {[%emt 0:00:06]} 64. f4# {[%emt 0:00:01]} 1-0

[Event "European Women Blitz-ch 2024"]
[Site "Monaco"]
[Date "2025.01.10"]
[Round "11.16"]
[White "Hrebenshchykova, Yelyzaveta"]
[Black "Socko, Monika"]
[Result "1-0"]
[Annotator "TA"]
[ECO "E63"]
[WhiteElo "2280"]
[BlackElo "2371"]
[PlyCount "89"]
[EventDate "2025.01.06"]
[EventType "swiss"]
[EventCountry "MNC"]
[SourceTitle "playchess.com"]
[Source "ChessBase"]
[SourceQuality "1"]
[TimeControl "180+2"]

{[%evp 14,88,31,18,38,21,48,43,62,45,52,57,67,38,75,52,72,70,55,29,36,0,0,-2,-9,-22,8,20,35,27,23,0,0,-5,56,11,35,29,46,41,239,29,72,0,0,0,0,-68,-85,-80,-74,-199,-96,-94,-95,-123,0,0,0,0,27,31,109,17,83,24,22,22,20,8,2,8,13,0,24,0,29999]} 1. Nf3 {[%emt 0:00:01]} Nf6 {[%emt 0:00:01]} 2. g3 {[%emt 0:00:00]} g6 {[%emt 0:00:03]} 3. Bg2 {[%emt 0:00:01]} Bg7 {[%emt 0:00:01]} 4. O-O {[%emt 0:00:03]} O-O {[%emt 0:00:02]} 5. d4 {[%emt 0:00:10]} d6 {[%emt 0:00:01]} 6. c4 {[%emt 0:00:02]} Nc6 {[%emt 0:00:01]} 7. Nc3 {[%emt 0:00:03]} a6 {[%emt 0:00:01]} 8. Bf4 {[%emt 0:00:07]} Bd7 {[%emt 0:00:07]} 9. Rc1 {[%emt 0:00:02]} Nh5 {[%emt 0:00:07]} 10. Be3 {[%emt 0:00:11]} Rb8 {[%emt 0:00:10]} 11. Qd2 {[%emt 0:00:13]} Nf6 {[%emt 0:00:09]} 12. Bh6 {[%emt 0:00:07]} Re8 {[%emt 0:00:04]} 13. Rfd1 {[%emt 0:00:42]} Bh8 {[%emt 0:00:01]} 14. Bg5 {[%emt 0:00:04]} Qc8 {[%emt 0:00:07]} 15. e4 {[%emt 0:00:05]} Bg4 {[%emt 0:00:11]} 16. Re1 {[%emt 0:00:33]} Nd7 {[%emt 0:00:10]} 17. d5 {[%emt 0:00:18]} Bxf3 {[%emt 0:00:10]} 18. Bxf3 {[%emt 0:00:01]} (18. dxc6 $5 Ne5 $8 19. cxb7 Rxb7 20. b3 $11) 18... Nd4 {[%emt 0:00:12]} 19. Be2 {[%emt 0:00:08]} Ne5 {[%emt 0:00:02] A dynamic duo of knights.} 20. Kg2 {[%emt 0:00:00] Wards off Nef3} (20. Qxd4 $2 Nf3+ 21. Bxf3 Bxd4 $19) 20... Nxe2 {[%emt 0:00:12]} 21. Qxe2 {[%emt 0:00:01]} c5 {[%emt 0:00:01]} 22. f4 {[%emt 0:00:07][%cal Bf2f4,Bf4f5][%mdl 32]} Nd7 {[%emt 0:00:01]} 23. a4 {[%emt 0:00:13]} b6 {[%emt 0:00:11]} ({Black should try} 23... Bxc3 $11 24. bxc3 (24. Rxc3 Kg7 $16) 24... Kg7) 24. f5 {[%emt 0:00:13]} Ne5 {[%emt 0:00:05]} 25. Rf1 {[%emt 0:00:01]} Bg7 {[%emt 0:00:07]} 26. b3 {[%emt 0:00:02]} Rf8 $2 {[%emt 0:00:04]} (26... Nd7 $14) 27. Qd2 $2 {[%emt 0:00:02]} ({White has to play} 27. Bxe7 $18 Rd8 28. Bxd8 Qxd8 29. Nd1) 27... f6 {[%emt 0:00:05]} 28. Bf4 {[%emt 0:00:11]} (28. Be3 $16) 28... gxf5 $11 {[%emt 0:00:01]} 29. Bxe5 {[%emt 0:00:06]} fxe5 {[%emt 0:00:01]} 30. Qg5 {[%emt 0:00:01] [#]} (30. exf5 $11 Rxf5 31. Qd3) 30... f4 $1 $15 {[%emt 0:00:08]} 31. gxf4 {[%emt 0:00:01]} exf4 {[%emt 0:00:04]} 32. Ne2 {[%emt 0:00:00] [#]} (32. Rxf4 $17 Kh8 33. Ne2) 32... e5 {[%emt 0:00:03]} (32... f3+ $1 $19 {is more deadly.} 33. Rxf3 Rxf3 34. Kxf3 Qf8+ (34... Qh3+ 35. Qg3 $17) 35. Nf4 b5) 33. dxe6 $17 {[%emt 0:00:05]} Qxe6 {[%emt 0:00:01]} 34. Qd5 {[%emt 0:00:05]} Rbe8 {[%emt 0:00:04]} (34... Qxd5 $17 35. exd5 Be5) 35. Nxf4 $11 {[%emt 0:00:02]} Qxd5 {[%emt 0:00:02]} 36. exd5 {[%emt 0:00:02]} Rf5 {[%emt 0:00:03]} (36... Bh6 $5 37. Ne6 $8 Bxc1 38. Nxf8 Re2+ 39. Kh3 Re3+ 40. Kh4 Re4+ (40... Rxb3 41. Ne6 $14) 41. Kh3 (41. Kh5 Re5+ 42. Kg4 Re4+ 43. Kg3 Re3+ 44. Kg4 Re4+ 45. Kh3 Bg5 $11) 41... Bg5 $11) 37. Ne6 {[%emt 0:00:02]} Re5 {[%emt 0:00:08]} (37... Rf6 $14) 38. Rce1 {[%emt 0:00:02]} ({White should play} 38. Kh1 $16) 38... b5 {[%emt 0:00:04]} 39. axb5 {[%emt 0:00:01] White is more active.} (39. Rxe5 $16 {Intending Rg5 and mate.} Bxe5 40. cxb5 (40. axb5 axb5 41. cxb5 Rb8 $14) 40... axb5 41. axb5) 39... axb5 {[%emt 0:00:00]} 40. Rxe5 {[%emt 0:00:02]} Bxe5 $16 {[%emt 0:00:01] KRB-KRN} 41. h3 {[%emt 0:00:03]} bxc4 {[%emt 0:00:02]} 42. bxc4 {[%emt 0:00:01]} Rb8 {[%emt 0:00:01]} 43. Kf3 {[%emt 0:00:02]} Rb3+ {[%emt 0:00:02]} 44. Kg4 {[%emt 0:00:02][%csl Ge6][%cal Rf1f8]} Rc3 $2 {[%mdl 8192]} (44... h6 $11) 45. Rf8# {[%emt 0:00:01]} 1-0

[Event "European Women Blitz-ch 2024"]
[Site "Monaco"]
[Date "2025.01.10"]
[Round "11.17"]
[White "De Seroux, Camille"]
[Black "Hunt, Harriet V"]
[Result "1-0"]
[Annotator "TA"]
[ECO "B23"]
[WhiteElo "2068"]
[BlackElo "2298"]
[PlyCount "53"]
[EventDate "2025.01.06"]
[EventType "swiss"]
[EventCountry "MNC"]
[SourceTitle "playchess.com"]
[Source "ChessBase"]
[SourceQuality "1"]
[TimeControl "180+2"]

{[%evp 9,53,-12,5,-20,-19,-23,-16,-25,-17,-21,-6,-16,0,0,7,0,15,0,-9,-10,87,65,57,18,156,0,0,0,0,0,54,0,0,-141,-141,-173,-171,-483,-106,-448,-433,-1152,-46,-271,482,-29987]} 1. e4 {[%emt 0:00:01]} c5 {[%emt 0:00:01]} 2. Nc3 {[%emt 0:00:01]} Nc6 {[%emt 0:00:01]} 3. f4 {[%emt 0:00:02]} g6 {[%emt 0:00:02]} 4. Nf3 {[%emt 0:00:01]} Bg7 {[%emt 0:00:01]} 5. a3 {[%emt 0:00:01]} d6 {[%emt 0:00:09]} 6. Bc4 {[%emt 0:00:02]} e6 {[%emt 0:00:02]} 7. d3 {[%emt 0:00:06]} Nge7 {[%emt 0:00:04]} 8. Ba2 {[%emt 0:00:01]} Rb8 {[%emt 0:00:12]} 9. O-O {[%emt 0:00:12]} O-O {[%emt 0:00:04]} 10. Qe1 {[%emt 0:00:03]} Nd4 {[%emt 0:00:21]} 11. Nxd4 {[%emt 0:00:05]} cxd4 {[%emt 0:00:01]} 12. Ne2 {[%emt 0:00:02]} Bd7 {[%emt 0:00:13]} 13. f5 {[%emt 0:00:46]} exf5 {[%emt 0:00:08]} 14. Qh4 $1 {[%emt 0:00:04]} Nc6 {[%emt 0:00:27]} (14... Be6 $11 {remains equal.}) 15. Bg5 $16 {[%emt 0:00:07] White is more active.} Qe8 {[%emt 0:00:02]} 16. Nf4 {[%emt 0:00:18] Black must now prevent Rae1.} Be6 {[%emt 0:00:26] [#]} (16... fxe4 $11 17. Nd5 e3) 17. Nd5 $2 {[%emt 0:00:23]} ({Better is} 17. exf5 $1 $16 Bxa2 18. f6 (18. Rxa2 $2 f6 $19)) 17... Bxd5 $11 {[%emt 0:00:08]} 18. Bxd5 {[%emt 0:00:03]} fxe4 {[%emt 0:00:11]} 19. dxe4 {[%emt 0:00:18]} Ne5 {[%emt 0:00:22]} ({Black should play} 19... Rc8 $11) 20. Rf4 {[%emt 0:00:08]} (20. Be7 $14) 20... Rc8 {[%emt 0:00:07]} 21. Bb3 {[%emt 0:00:03] [#] This pair of bishops is nice.} (21. Rf2 $11) 21... Qb5 $1 $17 {[%emt 0:00:08] and ...d3 would now be decisive} 22. Raf1 {[%emt 0:00:07]} d3 {[%emt 0:00:02]} 23. Be7 $2 {[%emt 0:00:13]} (23. R4f2) 23... Qc5+ $2 {[%emt 0:00:05]} (23... dxc2 $19 24. Bxc2 Rxc2 25. Bxf8 Bxf8) 24. Kh1 $2 {[%emt 0:00:02][%mdl 8192]} (24. R4f2 $17 {nothing else works.}) 24... dxc2 $1 $19 {[%emt 0:00:04]} 25. Rc1 {[%emt 0:00:12]} (25. Bxf8 $142 Rxf8 (25... c1=R 26. Bxg7 Rxf1+ 27. Rxf1 $11) 26. Bxc2 Qxc2 27. Qe7) 25... Nd3 $2 {[%emt 0:00:05]} (25... Qe3 $19 26. Rff1 Qxb3 27. Bxf8 Bxf8 (27... Rxf8 $2 28. Rf2 $19)) 26. Rxc2 $2 {[%emt 0:00:06]} ({White must play} 26. Bxf8 $15 Rxf8 (26... Nxc1 27. Rxf7) 27. Rxc2) 26... Qe3 $4 {[%emt 0:00:12][%mdl 8192]} (26... Qxc2 $19 {and all is fine.} 27. Bxc2 Rxc2) 27. Rxc8 $4 {[%emt 0:00:18][%mdl 8192]} (27. Bxf8 {leads to mate.} Qc1+ (27... Qxf4 $2 {loses.} 28. Qxf4 Nxf4 29. Rxc8 $18) 28. Rxc1 Rxc1+) (27. Rxf7 $18 Nf2+ 28. Qxf2 Qxb3 29. Rxf8+ (29. Bxf8 Rxc2 30. Rxg7+ Kh8 $16) 29... Rxf8 30. Bxf8 Bxf8 31. Qd2) 1-0

[Event "European Women Blitz-ch 2024"]
[Site "Monaco"]
[Date "2025.01.10"]
[Round "11.18"]
[White "Maisuradze, Nino"]
[Black "Toncheva, Nadya"]
[Result "0-1"]
[Annotator "TA"]
[ECO "D10"]
[WhiteElo "2174"]
[BlackElo "2313"]
[PlyCount "101"]
[EventDate "2025.01.06"]
[EventType "swiss"]
[EventCountry "MNC"]
[SourceTitle "playchess.com"]
[Source "ChessBase"]
[SourceQuality "1"]
[TimeControl "180+2"]

{[%evp 9,101,17,43,40,232,75,64,62,78,38,36,30,54,40,41,50,47,29,45,45,33,40,43,29,52,14,41,-23,-15,-18,-18,-34,0,-10,0,0,0,0,4,0,0,0,-2,-3,-2,-24,0,0,0,0,0,-20,-12,-21,-20,-11,-7,-2,-11,-19,-25,-153,-102,-263,-220,-445,-317,-317,-302,-302,-302,-1717,-1641,-1496,-1181,-1414,-1292,-1167,-554,-2410,-812,-29947,-29944,-29937,-29937,-29982,-29983,-29983,-29984,-29984,-29985,-29985,-29986,-29986]} 1. d4 {[%emt 0:00:00]} d5 {[%emt 0:00:01]} 2. c4 {[%emt 0:00:00]} c6 {[%emt 0:00:01]} 3. Nc3 {[%emt 0:00:01]} Nf6 {[%emt 0:00:02]} 4. cxd5 {[%emt 0:00:01]} cxd5 {[%emt 0:00:01]} 5. Bf4 {[%emt 0:00:00]} Bf5 {[%emt 0:00:06]} 6. Qb3 {[%emt 0:00:08]} Qd7 $2 {[%emt 0:00:25]} (6... Bc8 $14) 7. Nf3 $2 {[%emt 0:00:07]} (7. e4 $18 {has better winning chances.} dxe4 8. Bxb8) 7... Nc6 $16 {[%emt 0:00:02]} 8. e3 {[%emt 0:00:15] aiming for Ne5.} e6 {[%emt 0:00:04]} 9. Bb5 {[%emt 0:00:05]} Bd6 $1 {[%emt 0:00:08]} 10. Ne5 {[%emt 0:00:16]} Bxe5 {[%emt 0:00:02]} 11. Bxe5 {[%emt 0:00:02]} O-O {[%emt 0:00:11]} 12. Bxf6 {[%emt 0:00:05]} gxf6 {[%emt 0:00:01]} 13. g4 {[%emt 0:00:15]} Be4 {[%emt 0:00:08]} (13... Bxg4 $2 14. Rg1 $18) 14. Nxe4 {[%emt 0:00:07]} dxe4 {[%emt 0:00:01]} 15. O-O-O {[%emt 0:00:14]} Rac8 {[%emt 0:00:21]} 16. Kb1 {[%emt 0:00:01]} Qd6 {[%emt 0:00:09]} 17. h4 {[%emt 0:00:22]} Ne7 {[%emt 0:00:07][%cal Bc6e7,Be7d5,Bd5b4][%mdl 32]} 18. g5 {[%emt 0:00:09]} (18. Bf1 $14) 18... f5 $11 {[%emt 0:00:05]} 19. h5 {[%emt 0:00:07]} a6 {[%emt 0:00:18]} 20. Be2 {[%emt 0:00:01][%cal Og5g6]} Nd5 {[%emt 0:00:11]} 21. Rdg1 {[%emt 0:00:07][%cal Og5g6]} (21. Qxb7 $2 Rb8 22. Qxa6 Qb4 $19) 21... Qb4 {[%emt 0:00:06]} 22. Qxb4 {[%emt 0:00:08]} Nxb4 {[%emt 0:00:01]} 23. a3 {[%emt 0:00:00]} Nd5 {[%emt 0:00:03]} 24. g6 {[%emt 0:00:02]} h6 {[%emt 0:00:03]} 25. gxf7+ {[%emt 0:00:10]} Kxf7 {[%emt 0:00:01]} 26. Rg6 {[%emt 0:00:01]} Rh8 {[%emt 0:00:03]} 27. Rhg1 {[%emt 0:00:00]} Rcg8 {[%emt 0:00:04] Dodges Rg7+} 28. Bc4 {[%emt 0:00:05]} Rxg6 {[%emt 0:00:14]} 29. Rxg6 {[%emt 0:00:08][%mdl 4096] Endgame KRB-KRN} Nf6 $1 {[%emt 0:00:02]} 30. b4 {[%emt 0:00:29]} Rc8 {[%emt 0:00:08]} 31. Bb3 {[%emt 0:00:02]} Rg8 {[%emt 0:00:06]} 32. Rxg8 $1 {[%emt 0:00:03]} (32. Rxh6 Rg1+ 33. Kc2 Rg2 $19) 32... Nxg8 {[%emt 0:00:01] KB-KN} 33. d5 $1 {[%emt 0:00:01]} Nf6 {[%emt 0:00:05]} 34. dxe6+ {[%emt 0:00:03]} Ke7 {[%emt 0:00:01]} 35. Bc4 {[%emt 0:00:04]} (35. Bd1 $11 {remains equal.}) 35... Nxh5 {[%emt 0:00:02]} (35... b5 $142 $1 {[%cal Rb5c4]} 36. Be2 f4 (36... Kxe6 37. a4 $15) 37. exf4 Kxe6) 36. Bd5 $2 {[%emt 0:00:03] [#]} (36. Kc2 $17 {was called for.}) 36... b6 $1 $19 {[%emt 0:00:01]} 37. f3 $2 {[%emt 0:00:17]} (37. Bb7 a5 38. bxa5 bxa5 39. Kc2) 37... Nf6 {[%emt 0:00:06]} 38. Bb7 {[%emt 0:00:02]} a5 {[%emt 0:00:04]} (38... Kxe6 39. fxe4 Nxe4 40. Bxa6 $17) (38... exf3 39. Bxf3 h5 (39... Kxe6 $2 40. Kc1 $19) 40. Kc2 $19) 39. bxa5 {[%emt 0:00:01]} bxa5 {[%emt 0:00:01]} (39... Kxe6 $2 {is the wrong capture.} 40. a6 (40. axb6 Nd7 $16) 40... Ne8 41. a7 $18 (41. fxe4 Nc7 $18)) 40. fxe4 $2 {[%emt 0:00:01]} (40. Kc1) 40... fxe4 {[%emt 0:00:01]} ({Less strong is} 40... Kxe6 41. exf5+ Kxf5 42. Kc2 $15) (40... Nxe4 $2 41. Kc1 $19) 41. Kc2 {[%emt 0:00:11]} h5 {[%emt 0:00:02][%cal Oh5h4]} (41... Kxe6 $2 42. Kd2 $19) 42. Ba6 {[%emt 0:00:03]} h4 {[%emt 0:00:05][%cal Oh4h3] and ...h3! should not be overlooked} 43. Bf1 {[%emt 0:00:01]} Nd5 {[%emt 0:00:01]} 44. Bh3 {[%emt 0:00:02]} Nxe3+ {[%emt 0:00:02]} 45. Kb3 {[%emt 0:00:01]} Nd5 {[%emt 0:00:02]} 46. Kc4 {[%emt 0:00:01]} Nf4 {[%emt 0:00:01][%csl LRe6,LRh3]} 47. Bf1 {[%emt 0:00:02]} h3 {[%emt 0:00:03]} 48. Bxh3 {[%emt 0:00:03]} Nxh3 {[%emt 0:00:01]} 49. Kd4 {[%emt 0:00:00]} Ng5 {[%emt 0:00:01]} 50. Ke3 {[%emt 0:00:09]} Kxe6 {[%emt 0:00:02]} 51. Kf4 {[%emt 0:00:00]} 0-1

[Event "European Women Blitz-ch 2024"]
[Site "Monaco"]
[Date "2025.01.10"]
[Round "12.1"]
[White "Roebers, Eline"]
[Black "Khotenashvili, Bella"]
[Result "1/2-1/2"]
[Annotator "TA"]
[ECO "B15"]
[WhiteElo "2381"]
[BlackElo "2420"]
[PlyCount "88"]
[EventDate "2025.01.06"]
[EventType "swiss"]
[EventCountry "MNC"]
[SourceTitle "playchess.com"]
[Source "ChessBase"]
[SourceQuality "1"]
[TimeControl "180+2"]

{[%evp 9,88,36,64,33,45,39,54,51,61,0,0,0,25,-39,1,-46,-45,-43,-47,-166,-172,-164,-111,-135,-66,-84,57,58,166,16,24,15,156,174,164,112,150,50,113,87,143,145,189,51,127,0,0,0,0,0,0,-77,-76,-115,-122,-139,-14,-10,-17,-16,-19,-27,-19,-8,0,-25,0,-10,0,0,0,0,0,0,0,0,0,0,0,0,0]} 1. e4 {[%emt 0:00:01]} c6 {[%emt 0:00:00]} 2. Nf3 {[%emt 0:00:01]} d5 {[%emt 0:00:02]} 3. Nc3 {[%emt 0:00:01]} g6 {[%emt 0:00:00]} 4. d4 {[%emt 0:00:02]} Bg7 {[%emt 0:00:01]} 5. h3 {[%emt 0:00:00]} Nh6 {[%emt 0:00:02]} 6. e5 {[%emt 0:00:06]} f6 {[%emt 0:00:05]} 7. Bf4 {[%emt 0:00:05]} Nf7 {[%emt 0:00:03]} 8. Qd2 {[%emt 0:00:07]} b5 {[%emt 0:00:16][%cal Bb7b5,Bb5b4][%mdl 32]} 9. a4 {[%emt 0:00:09]} ({Better is} 9. O-O-O $14) 9... b4 {[%emt 0:00:02]} 10. Ne2 {[%emt 0:00:01]} a5 {[%emt 0:00:04]} 11. Ng3 {[%emt 0:00:24]} (11. h4 $11) 11... Na6 {[%emt 0:00:14]} 12. O-O-O {[%emt 0:00:07]} (12. h4 $1 $11 {was preferable.}) 12... fxe5 $1 $15 {[%emt 0:00:21]} 13. dxe5 {[%emt 0:00:04]} Nc5 {[%emt 0:00:18][%cal Oc5e6]} 14. b3 {[%emt 0:00:10]} (14. h4 $15) 14... Ne6 $1 $19 {[%emt 0:00:08] and ...Nxf4 would now be decisive} 15. Be3 {[%emt 0:00:11]} Nxe5 {[%emt 0:00:11]} (15... Bxe5 16. Nxe5 Nxe5 17. f4 $14) (15... Qc7 $19 {[%cal Oe8g8]} 16. Kb1 O-O (16... Bxe5 17. Nxe5 Qxe5 18. h4 $11) (16... Nxe5 17. Nd4 $17)) 16. Nd4 {[%emt 0:00:13]} Bf6 {[%emt 0:00:54]} (16... O-O $17 17. f4 Qc7 (17... Nxd4 18. Bxd4 Nf7 19. Bxg7 $17)) 17. f4 $15 {[%emt 0:00:05]} Nf7 {[%emt 0:00:22]} (17... Qc7 $1 $17) 18. Nxc6 $14 {[%emt 0:00:07]} Qd6 {[%emt 0:00:02]} (18... Qc7 $14) 19. Nd4 {[%emt 0:00:15]} (19. Qxd5 $18 {[%cal Oc6e7] Hoping for Nxe7!.} Qxd5 20. Rxd5) 19... Nxd4 $11 {[%emt 0:00:07]} 20. Bxd4 {[%emt 0:00:01]} Bb7 {[%emt 0:00:07]} (20... O-O $1 $11) 21. Bb5+ $16 {[%emt 0:00:03]} Kf8 {[%emt 0:00:00]} 22. Rhf1 {[%emt 0:00:16]} (22. Rhe1 $18) 22... Rc8 {[%emt 0:00:02]} 23. Qd3 {[%emt 0:00:12]} (23. Rde1 $16) 23... Qc7 {[%emt 0:00:06]} (23... Rc3 $14 24. Bxc3 bxc3) 24. Rd2 {[%emt 0:00:08] White is more active.} Nd6 {[%emt 0:00:02]} (24... Rg8) 25. f5 $1 {[%emt 0:00:04]} g5 {[%emt 0:00:04]} 26. Nh5 {[%emt 0:00:08]} (26. Bxf6 $1 $18 exf6 27. Re1 Nxb5 28. axb5) 26... Ne4 {[%emt 0:00:02]} (26... Bxd4 $1 $14 27. Qxd4 Qc3) 27. Re2 {[%emt 0:00:03] Some like it hot} (27. Re1 $1 $16) 27... Bxd4 $1 $11 {[%emt 0:00:08]} 28. Qxd4 {[%emt 0:00:02][%csl Gh5][%cal Rd4g7]} Qc3 {[%emt 0:00:00]} 29. Qxc3 {[%emt 0:00:04]} Rxc3 {[%emt 0:00:01]} 30. f6 {[%emt 0:00:02] [#]} (30. Rf3 $11 {keeps the balance.}) 30... e6 $1 $17 {[%emt 0:00:03]} 31. f7 {[%emt 0:00:06]} Rc7 {[%emt 0:00:02]} 32. Bd3 {[%emt 0:00:06] [#]} Rxf7 {[%emt 0:00:02]} ({Black should play} 32... Nc5 $1 $17 {[%cal Rc5d3]} 33. Kb2 Rxf7 34. Rxf7+ Kxf7) 33. Rxf7+ $11 {[%emt 0:00:01]} Kxf7 {[%emt 0:00:00]} 34. Bxe4 {[%emt 0:00:01]} dxe4 $17 {[%emt 0:00:01][%mdl 4096] Endgame KRB-KRN. Black is a pawn up.} 35. Ng3 $1 {[%emt 0:00:01]} Rd8 {[%emt 0:00:03]} 36. Nxe4 {[%emt 0:00:01]} Rd5 {[%emt 0:00:01]} 37. Nd2 {[%emt 0:00:06]} Ke7 {[%emt 0:00:07]} 38. Re3 {[%emt 0:00:03]} Rf5 {[%emt 0:00:04]} 39. g4 {[%emt 0:00:09]} Rc5 {[%emt 0:00:05]} 40. Nc4 {[%emt 0:00:02]} Ba6 {[%emt 0:00:02]} 41. Ne5 {[%emt 0:00:01]} Bb7 {[%emt 0:00:02]} 42. Nc4 {[%emt 0:00:08]} Ba6 {[%emt 0:00:01]} 43. Ne5 {[%emt 0:00:01]} Bb7 {[%emt 0:00:01]} 44. Nc4 {[%emt 0:00:04]} Ba6 {[%emt 0:00:01]} 1/2-1/2